fUST/lending_fUST_20240416
["ID","MTS","AMOUNT","RATE_DAILY","PERIOD"]
[322703297,1713227179268,910.82,0.00038706,40]
[322703298,1713227179386,500.0,0.00038706,40]
[322703299,1713227179535,910.82,0.00038706,40]
[322703300,1713227179662,500.0,0.00038706,40]
[322703301,1713227179927,500.0,0.00038706,40]
[322703302,1713227179988,910.82,0.00038706,40]
[322703303,1713227180263,910.82,0.00038706,40]
[322703304,1713227180519,910.82,0.00038706,40]
[322703305,1713227180830,910.82,0.00038706,40]
[322703306,1713227181098,910.82,0.00038706,40]
[322703307,1713227181364,910.82,0.00038706,40]
[322703309,1713227181981,910.82,0.00038706,40]
[322703310,1713227185319,742.0,0.00038706,40]
[322703311,1713227185525,742.0,0.00038706,40]
[322703312,1713227185794,742.0,0.00038706,40]
[322703313,1713227186053,742.0,0.00038706,40]
[322703314,1713227186320,742.0,0.00038706,40]
[322703315,1713227186605,742.0,0.00038706,40]
[322703316,1713227186844,742.0,0.00038706,40]
[322703317,1713227187094,742.0,0.00038706,40]
[322703318,1713227187392,742.0,0.00038706,40]
[322703320,1713227187642,742.0,0.00038706,40]
[322703321,1713227187873,910.82,0.00038706,40]
[322703322,1713227187905,742.0,0.00038706,40]
[322703323,1713227188181,910.82,0.00038706,40]
[322703324,1713227188212,742.0,0.00038706,40]
[322703325,1713227188444,910.82,0.00038706,40]
[322703326,1713227188505,742.0,0.00038706,40]
[322703327,1713227188730,910.82,0.00038706,40]
[322703328,1713227188789,742.0,0.00038706,40]
[322703329,1713227189000,910.82,0.00038706,40]
[322703330,1713227189051,500.0,0.00038706,40]
[322703331,1713227189082,742.0,0.00038706,40]
[322703332,1713227189347,742.0,0.00038706,40]
[322703333,1713227189387,910.91983703,0.00038706,40]
[322703334,1713227189418,500.0,0.00038706,40]
[322703335,1713227189632,742.0,0.00038706,40]
[322703336,1713227189688,500.0,0.00038706,40]
[322703337,1713227189916,742.0,0.00038706,40]
[322703338,1713227190173,742.0,0.00038706,40]
[322703339,1713227190458,742.0,0.00038706,40]
[322703340,1713227190741,742.0,0.00038706,40]
[322703341,1713227191017,742.0,0.00038706,40]
[322703342,1713227191288,742.0,0.00038706,40]
[322703343,1713227191563,742.05,0.00038706,40]
[322703344,1713227192251,500.0,0.00038706,40]
[322703345,1713227192513,500.0,0.00038706,40]
[322703348,1713227202256,500.0,0.00038706,40]
[322703349,1713227202571,500.0,0.00038706,40]
[322703351,1713227203141,500.0,0.00038706,40]
[322703352,1713227203208,500.0,0.00038706,40]
[322703353,1713227203410,500.0,0.00038706,40]
[322703354,1713227203484,500.0,0.00038706,40]
[322703355,1713227203742,500.0,0.00038706,40]
[322703356,1713227203892,500.0,0.00038706,40]
[322703357,1713227204000,500.0,0.00038706,40]
[322703358,1713227204272,446.38,0.00038706,40]
[322703359,1713227205416,500.0,0.00038706,40]
[322703360,1713227205756,500.0,0.00038706,40]
[322703362,1713227208925,500.0,0.00038706,40]
[322703363,1713227209521,500.0,0.00038706,40]
[322703364,1713227209846,500.0,0.00038706,40]
[322703365,1713227211372,500.0,0.00038706,40]
[322703366,1713227211642,500.0,0.00038706,40]
[322703367,1713227211906,500.0,0.00038706,40]
[322703368,1713227212384,500.0,0.00038706,40]
[322703372,1713227226179,-205.79653889,0.00024691,2]
[322703373,1713227226200,-158.76974363,0.00024692,2]
[322703374,1713227226221,-28.12880396,0.00024699,2]
[322703375,1713227228294,500.0,0.00038706,40]
[322703377,1713227230343,500.0,0.00038706,40]
[322703378,1713227233519,500.0,0.00038706,40]
[322703379,1713227233788,500.0,0.00038706,40]
[322703380,1713227234073,500.0,0.00038706,40]
[322703381,1713227234392,500.0,0.00038706,40]
[322703383,1713227234663,500.0,0.00038706,40]
[322703384,1713227235071,500.0,0.00038706,40]
[322703385,1713227235166,500.0,0.00038706,40]
[322703386,1713227235349,500.0,0.00038706,40]
[322703387,1713227235435,500.0,0.00038706,40]
[322703388,1713227235605,160.8,0.00038706,40]
[322703389,1713227235720,500.0,0.00038706,40]
[322703390,1713227235997,500.0,0.00038706,40]
[322703391,1713227236316,500.0,0.00038706,40]
[322703392,1713227236506,500.0,0.00038706,40]
[322703393,1713227236765,549.24446585,0.00038706,40]
[322703394,1713227238705,500.0,0.00038706,40]
[322703395,1713227238972,500.0,0.00038706,40]
[322703396,1713227239251,500.0,0.00038706,40]
[322703398,1713227239895,500.0,0.00038706,40]
[322703399,1713227239969,500.0,0.00038706,40]
[322703400,1713227240202,500.0,0.00038706,40]
[322703401,1713227240269,500.0,0.00038706,40]
[322703402,1713227240498,500.0,0.00038706,40]
[322703403,1713227240537,500.0,0.00038706,40]
[322703404,1713227240755,500.0,0.00038706,40]
[322703405,1713227240803,500.0,0.00038706,40]
[322703406,1713227241032,500.0,0.00038706,40]
[322703407,1713227241099,500.0,0.00038706,40]
[322703408,1713227241292,500.0,0.00038706,40]
[322703409,1713227241548,500.0,0.00038706,40]
[322703410,1713227241873,500.0,0.00038706,40]
[322703411,1713227241909,500.0,0.00038706,40]
[322703412,1713227242052,264.64,0.00038706,40]
[322703413,1713227242137,500.0,0.00038706,40]
[322703414,1713227242656,500.0,0.00038706,40]
[322703415,1713227242941,500.0,0.00038706,40]
[322703416,1713227243223,500.0,0.00038706,40]
[322703417,1713227243490,500.0,0.00038706,40]
[322703418,1713227243745,209.083401,0.00038706,40]
[322703425,1713227273635,500.0,0.00038706,40]
[322703426,1713227273912,500.0,0.00038706,40]
[322703427,1713227274204,357.75840675,0.00038706,40]
[322703429,1713227276290,500.0,0.00038706,40]
[322703430,1713227276547,388.20097583,0.00038706,40]
[322703431,1713227278917,500.0,0.00038706,40]
[322703432,1713227279524,500.0,0.00038706,40]
[322703433,1713227279810,500.0,0.00038706,40]
[322703435,1713227286038,500.0,0.00038706,40]
[322703436,1713227286301,500.0,0.00038706,40]
[322703437,1713227286582,425.9150773,0.00038706,40]
[322703440,1713227295333,500.0,0.00038706,40]
[322703441,1713227295613,500.0,0.00038706,40]
[322703442,1713227295882,500.0,0.00038706,40]
[322703444,1713227300243,500.0,0.00038706,40]
[322703447,1713227310409,500.0,0.00038706,40]
[322703448,1713227310629,500.0,0.00038706,40]
[322703449,1713227310877,500.0,0.00038706,40]
[322703450,1713227311125,500.0,0.00038706,40]
[322703451,1713227311395,500.0,0.00038706,40]
[322703452,1713227311947,500.0,0.00038706,40]
[322703453,1713227312222,500.0,0.00038706,40]
[322703454,1713227312494,500.0,0.00038706,40]
[322703455,1713227312859,500.0,0.00038706,40]
[322703456,1713227313165,174.84,0.00038706,40]
[322703457,1713227313967,500.0,0.00038706,40]
[322703459,1713227322459,500.0,0.00038706,40]
[322703461,1713227323471,500.0,0.00038706,40]
[322703462,1713227323751,512.3,0.00038706,40]
[322703463,1713227325990,940.68,0.00038706,40]
[322703464,1713227326245,940.68,0.00038706,40]
[322703465,1713227326517,940.68,0.00038706,40]
[322703466,1713227326777,940.68,0.00038706,40]
[322703467,1713227327035,940.68,0.00038706,40]
[322703468,1713227327305,940.68,0.00038706,40]
[322703469,1713227327383,500.0,0.00038706,40]
[322703470,1713227327571,940.68,0.00038706,40]
[322703471,1713227327849,500.0,0.00038706,40]
[322703472,1713227327880,940.68,0.00038706,40]
[322703473,1713227328122,500.0,0.00038706,40]
[322703474,1713227328152,940.68,0.00038706,40]
[322703476,1713227328381,500.0,0.00038706,40]
[322703477,1713227328415,940.68,0.00038706,40]
[322703478,1713227328658,500.0,0.00038706,40]
[322703479,1713227328691,940.68,0.00038706,40]
[322703480,1713227329306,940.68,0.00038706,40]
[322703481,1713227329606,940.68,0.00038706,40]
[322703482,1713227329870,940.68,0.00038706,40]
[322703483,1713227330112,940.68,0.00038706,40]
[322703484,1713227330780,940.68,0.00038706,40]
[322703485,1713227330985,940.68,0.00038706,40]
[322703486,1713227331242,940.68,0.00038706,40]
[322703487,1713227331504,940.68,0.00038706,40]
[322703488,1713227331767,940.68,0.00038706,40]
[322703489,1713227332034,940.68,0.00038706,40]
[322703490,1713227332348,940.68,0.00038706,40]
[322703491,1713227332539,500.0,0.00038706,40]
[322703492,1713227332647,940.68,0.00038706,40]
[322703493,1713227332920,940.81528736,0.00038706,40]
[322703494,1713227333183,500.0,0.00038706,40]
[322703495,1713227333480,500.0,0.00038706,40]
[322703497,1713227335386,500.0,0.00038706,40]
[322703498,1713227335979,500.0,0.00038706,40]
[322703499,1713227336251,500.0,0.00038706,40]
[322703500,1713227338162,500.0,0.00038706,40]
[322703501,1713227338433,589.8,0.00038706,40]
[322703505,1713227343182,592.62,0.00038706,40]
[322703510,1713227352907,500.0,0.00038706,40]
[322703516,1713227372348,500.0,0.00038706,40]
[322703517,1713227372655,500.0,0.00038706,40]
[322703518,1713227372915,500.0,0.00038706,40]
[322703522,1713227391716,500.0,0.00038722,40]
[322703523,1713227391978,500.0,0.00038722,40]
[322703527,1713227399424,500.0,0.00038722,40]
[322703528,1713227399876,500.0,0.00038722,40]
[322703529,1713227400001,500.0,0.00038722,40]
[322703530,1713227400353,500.0,0.00038722,40]
[322703531,1713227400952,500.0,0.00038722,40]
[322703532,1713227401218,500.0,0.00038722,40]
[322703533,1713227401567,500.0,0.00038722,40]
[322703534,1713227401854,500.0,0.00038722,40]
[322703535,1713227402112,500.0,0.00038722,40]
[322703536,1713227402411,500.0,0.00038722,40]
[322703537,1713227402664,500.0,0.00038722,40]
[322703538,1713227402935,500.0,0.00038722,40]
[322703539,1713227403127,500.0,0.00038722,40]
[322703540,1713227403245,500.0,0.00038722,40]
[322703541,1713227403415,515.46839036,0.00038722,40]
[322703543,1713227404024,500.0,0.00038722,40]
[322703544,1713227404294,500.0,0.00038722,40]
[322703545,1713227404613,500.0,0.00038722,40]
[322703546,1713227404883,500.0,0.00038722,40]
[322703547,1713227405152,500.0,0.00038722,40]
[322703548,1713227405435,500.0,0.00038722,40]
[322703549,1713227405713,500.0,0.00038722,40]
[322703550,1713227406809,500.0,0.00038722,40]
[322703551,1713227408618,500.0,0.00038722,40]
[322703553,1713227412158,500.0,0.00038722,40]
[322703554,1713227412706,500.0,0.00038722,40]
[322703555,1713227412901,500.0,0.00038722,40]
[322703557,1713227416979,500.0,0.00038722,40]
[322703558,1713227417239,500.0,0.00038722,40]
[322703559,1713227417558,185.24,0.00038722,40]
[322703562,1713227426685,500.0,0.00038722,40]
[322703628,1713227438051,-205.79653889,0.00024698,2]
[322703630,1713227438061,-126.23041316,0.00024699,2]
[322703632,1713227438070,-413.60872989,0.00024799,2]
[322703634,1713227438079,-917.01919934,0.000249,2]
[322703635,1713227438088,-156.98200501,0.00025,2]
[322703637,1713227438097,-166.780428,0.00026685,2]
[322703639,1713227438106,-158.76974363,0.00026877,2]
[322703641,1713227438116,-300.0,0.00026878,2]
[322703643,1713227438124,-300.0,0.00026878,2]
[322703645,1713227438133,-7342.98647789,0.00026879,2]
[322703648,1713227438145,-632.5,0.00026879,2]
[322703650,1713227438156,-16924.51352211,0.00026879,2]
[322703652,1713227438165,-3109.47459931,0.00027078,2]
[322703654,1713227438174,-213.29432251,0.00027079,2]
[322703656,1713227438183,-295.299497,0.00027397,2]
[322703658,1713227438192,-225.472327,0.00027397,2]
[322703660,1713227438201,-166.666666,0.00027397,2]
[322703662,1713227438211,-168.59339,0.00027662,2]
[322703664,1713227438219,-166.666666,0.00028038,2]
[322703666,1713227438229,-243.11397292,0.00028504,2]
[322703668,1713227438238,-166.666666,0.00028679,2]
[322703670,1713227438247,-235.438181,0.0002873,2]
[322703672,1713227438257,-420.0,0.00029062,2]
[322703674,1713227438268,-166.666666,0.00029321,2]
[322703676,1713227438277,-420.0,0.00029566,2]
[322703678,1713227438287,-161.77699218,0.0002996,2]
[322703680,1713227438296,-309.59753557,0.0002996,2]
[322703696,1713227438439,-166.666666,0.00029962,2]
[322703698,1713227438449,-160.0,0.0003,2]
[322703700,1713227438460,-306.0,0.0003,2]
[322703702,1713227438469,-500.0,0.00030136,2]
[322703704,1713227438478,-500.0,0.00030136,2]
[322703706,1713227438487,-500.0,0.00030136,2]
[322703708,1713227438498,-500.0,0.00030136,2]
[322703710,1713227438507,-500.0,0.00030136,2]
[322703712,1713227438516,-500.0,0.00030136,2]
[322703714,1713227438525,-500.0,0.00030136,2]
[322703716,1713227438534,-500.0,0.00030136,2]
[322703718,1713227438543,-4846.42835322,0.00030136,5]
[322703720,1713227438553,-217.81749,0.00030137,2]
[322703722,1713227438562,-2000.0,0.0003031,2]
[322703724,1713227438571,-338.83918712,0.0003041,7]
[322703726,1713227438580,-500.0,0.0003041,7]
[322703728,1713227438590,-500.0,0.0003041,7]
[322703730,1713227438599,-500.0,0.0003041,7]
[322703732,1713227438608,-500.0,0.0003041,7]
[322703734,1713227438617,-608.43682549,0.0003041,7]
[322703736,1713227438626,-500.0,0.0003041,7]
[322703738,1713227438635,-500.0,0.0003041,7]
[322703740,1713227438645,-166.666666,0.00030603,2]
[322703742,1713227438654,-830.30989396,0.00030645,2]
[322703744,1713227438663,-647.49568008,0.00030682,4]
[322703746,1713227438673,-182.07794757,0.00030682,2]
[322703748,1713227438682,-359.60536258,0.00030683,4]
[322703750,1713227438691,-15097.81095555,0.00030683,4]
[322703752,1713227438700,-500.0,0.00030684,7]
[322703754,1713227438709,-500.0,0.00030684,7]
[322703756,1713227438720,-500.0,0.00030684,7]
[322703758,1713227438728,-500.0,0.00030958,7]
[322703760,1713227438737,-500.0,0.00030958,7]
[322703762,1713227438747,-167.76886009,0.00030961,2]
[322703764,1713227438756,-10625.72892433,0.00031,5]
[322703766,1713227438766,-500.0,0.00031232,7]
[322703768,1713227438775,-626.63,0.00031232,7]
[322703770,1713227438783,-154.35921712,0.00031406,2]
[322703772,1713227438793,-587.0,0.00031423,2]
[322703774,1713227438802,-1000.0,0.00031437,2]
[322703776,1713227438810,-953.73793423,0.00031437,4]
[322703778,1713227438819,-688.1990758,0.00031438,4]
[322703780,1713227438828,-2559.53479146,0.00031438,4]
[322703782,1713227438837,-783.63141595,0.00031439,4]
[322703784,1713227438845,-312.17239167,0.00031471,4]
[322703786,1713227438854,-412.8723066,0.00031471,2]
[322703788,1713227438863,-155.41939666,0.00031471,4]
[322703790,1713227438872,-216.09314923,0.00031471,4]
[322703792,1713227438881,-241.07910305,0.00031472,4]
[322703794,1713227438890,-157.4992408,0.00031472,4]
[322703796,1713227438899,-3000.0,0.000315,4]
[322703798,1713227438907,-309.67486073,0.00031504,4]
[322703800,1713227438916,-500.0,0.00031506,7]
[322703802,1713227438925,-251.150563,0.00031506,2]
[322703804,1713227438934,-151.0,0.00031506,2]
[322703806,1713227438943,-160.0,0.00031644,2]
[322703808,1713227438953,-453.55038226,0.0003168,2]
[322703810,1713227438962,-190.02342805,0.00031778,4]
[322703812,1713227438971,-3998.15495718,0.00031778,2]
[322703814,1713227438979,-258.01584302,0.00031778,4]
[322703816,1713227438988,-500.0,0.0003178,7]
[322703818,1713227438997,-151.0,0.0003178,2]
[322703819,1713227439006,-227.225342,0.0003178,2]
[322703821,1713227439016,-151.0,0.0003178,2]
[322703824,1713227439026,-154.87609912,0.0003189,10]
[322703825,1713227439035,-971.0,0.000319,12]
[322703827,1713227439044,-191.09643603,0.00032,4]
[322703831,1713227439063,-153.0,0.00032019,2]
[322703833,1713227439074,-153.0,0.00032019,2]
[322703835,1713227439084,-153.0,0.00032019,2]
[322703837,1713227439094,-153.0,0.00032019,2]
[322703839,1713227439103,-306.0,0.00032019,2]
[322703841,1713227439113,-153.0,0.00032019,2]
[322703843,1713227439123,-153.0,0.00032019,2]
[322703845,1713227439133,-153.0,0.00032019,2]
[322703847,1713227439143,-153.0,0.00032019,2]
[322703850,1713227439153,-500.0,0.00032054,7]
[322703852,1713227439164,-150.0,0.00032163,2]
[322703854,1713227439174,-630.5154947,0.00032177,2]
[322703856,1713227439183,-267.2716243,0.00032224,2]
[322703858,1713227439192,-300.2619656,0.00032224,2]
[322703860,1713227439202,-306.0,0.00032224,2]
[322703862,1713227439211,-153.0,0.00032224,2]
[322703864,1713227439221,-153.0,0.00032224,2]
[322703866,1713227439230,-406.2732194,0.00032224,2]
[322703868,1713227439239,-153.0,0.00032224,2]
[322703870,1713227439248,-203.1366097,0.00032224,2]
[322703872,1713227439258,-153.0,0.00032224,2]
[322703874,1713227439269,-153.0,0.00032224,2]
[322703876,1713227439278,-153.0,0.00032224,2]
[322703878,1713227439287,-153.0,0.00032224,2]
[322703880,1713227439297,-203.1366097,0.00032224,2]
[322703882,1713227439306,-203.1366097,0.00032224,2]
[322703884,1713227439316,-153.0,0.00032224,2]
[322703886,1713227439326,-153.0,0.00032224,2]
[322703888,1713227439335,-153.0,0.00032224,2]
[322703890,1713227439346,-151.0,0.00032327,2]
[322703892,1713227439355,-151.0,0.00032327,2]
[322703894,1713227439366,-500.0,0.00032328,7]
[322703896,1713227439377,-151.0,0.00032328,2]
[322703899,1713227439387,-151.0,0.00032328,2]
[322703901,1713227439397,-151.0,0.00032328,2]
[322703903,1713227439406,-151.0,0.00032328,2]
[322703905,1713227439417,-453.55038224,0.00032484,2]
[322703907,1713227439427,-212.0,0.000325,7]
[322703909,1713227439436,-587.0,0.00032522,2]
[322703911,1713227439447,-500.0,0.00032602,7]
[322703913,1713227439456,-151.0,0.00032602,2]
[322703915,1713227439466,-333.279038,0.00032602,2]
[322703917,1713227439476,-333.279038,0.00032602,2]
[322703919,1713227439485,-151.0,0.00032602,2]
[322703921,1713227439496,-151.0,0.00032602,2]
[322703923,1713227439505,-188.0,0.00032602,2]
[322703926,1713227439515,-153.0,0.00032841,2]
[322703928,1713227439524,-153.0,0.00032841,2]
[322703930,1713227439534,-153.0,0.00032841,2]
[322703932,1713227439543,-153.0,0.00032841,2]
[322703934,1713227439552,-153.0,0.00032841,2]
[322703936,1713227439561,-249.6204321,0.00032841,2]
[322703939,1713227439570,-500.0,0.00032876,7]
[322703941,1713227439579,-151.0,0.00032876,2]
[322703943,1713227439589,-151.0,0.00032876,2]
[322703945,1713227439598,-151.0,0.00032876,2]
[322703947,1713227439607,-151.0,0.00032876,2]
[322703949,1713227439617,-266.08054062,0.00032889,2]
[322703951,1713227439626,-1200.0,0.00033,4]
[322703954,1713227439635,-151.0,0.00033,2]
[322703957,1713227439644,-153.0,0.00033046,2]
[322703960,1713227439653,-153.0,0.00033046,2]
[322703963,1713227439662,-291.3934036,0.00033046,2]
[322703966,1713227439672,-203.1366097,0.00033046,2]
[322703969,1713227439681,-153.0,0.00033046,2]
[322703972,1713227439690,-153.0,0.00033046,2]
[322703974,1713227439699,-203.1366097,0.00033046,2]
[322703977,1713227439709,-153.0,0.00033046,2]
[322703979,1713227439718,-203.1366097,0.00033046,2]
[322703981,1713227439727,-153.0,0.00033046,2]
[322703983,1713227439736,-500.0,0.0003315,7]
[322703985,1713227439746,-181.435819,0.00033165,2]
[322703987,1713227439755,-362.432637,0.00033165,2]
[322703989,1713227439765,-295.299497,0.00033165,2]
[322703991,1713227439774,-225.472327,0.00033165,2]
[322703993,1713227439784,-163.0,0.00033226,2]
[322703995,1713227439793,-453.55038224,0.00033289,2]
[322703998,1713227439803,-3000.0,0.000333,2]
[322704000,1713227439812,-3000.0,0.0003331,2]
[322704002,1713227439821,-333.279038,0.0003332,2]
[322704004,1713227439830,-333.279038,0.0003332,2]
[322704006,1713227439839,-151.0,0.0003332,2]
[322704008,1713227439849,-151.0,0.0003332,2]
[322704009,1713227439858,-3000.0,0.0003332,2]
[322704012,1713227439867,-151.0,0.0003333,2]
[322704014,1713227439876,-151.0,0.0003333,2]
[322704016,1713227439885,-151.0,0.0003333,2]
[322704018,1713227439894,-151.0,0.0003333,2]
[322704020,1713227439903,-151.0,0.0003333,2]
[322704022,1713227439912,-3000.0,0.0003333,2]
[322704024,1713227439921,-3000.0,0.0003334,2]
[322704026,1713227439930,-3000.0,0.0003335,2]
[322704028,1713227439940,-3000.0,0.0003336,2]
[322704030,1713227439949,-3000.0,0.0003337,2]
[322704032,1713227439958,-3000.0,0.0003338,2]
[322704033,1713227439967,-3000.0,0.0003339,2]
[322704035,1713227439976,-151.0,0.000334,2]
[322704038,1713227439986,-151.0,0.000334,2]
[322704040,1713227439995,-1863.797743,0.000334,2]
[322704042,1713227440004,-1863.797743,0.000334,2]
[322704044,1713227440014,-3000.0,0.000334,2]
[322704046,1713227440023,-3000.0,0.0003341,2]
[322704048,1713227440032,-3000.0,0.0003342,2]
[322704050,1713227440041,-500.0,0.00033424,7]
[322704052,1713227440052,-3000.0,0.0003343,2]
[322704054,1713227440063,-3000.0,0.0003344,2]
[322704055,1713227440073,-151.0,0.0003345,2]
[322704058,1713227440082,-3000.0,0.0003345,2]
[322704060,1713227440092,-151.0,0.0003346,2]
[322704062,1713227440101,-151.0,0.0003346,2]
[322704064,1713227440110,-151.0,0.0003346,2]
[322704066,1713227440118,-151.0,0.0003346,2]
[322704068,1713227440127,-3000.0,0.0003346,2]
[322704070,1713227440136,-333.279038,0.0003347,2]
[322704072,1713227440145,-333.279038,0.0003347,2]
[322704074,1713227440154,-151.0,0.0003347,2]
[322704076,1713227440163,-151.0,0.0003347,2]
[322704077,1713227440172,-3000.0,0.0003347,2]
[322704078,1713227440181,-3000.0,0.0003348,2]
[322704079,1713227440190,-168.12852,0.0003348,2]
[322704080,1713227440199,-168.12852,0.0003348,2]
[322704081,1713227440208,-539.563969,0.00033483,2]
[322704082,1713227440217,-539.563969,0.00033483,2]
[322704083,1713227440226,-151.0,0.00033488,2]
[322704084,1713227440235,-151.0,0.00033488,2]
[322704085,1713227440244,-313.977112,0.00033488,2]
[322704086,1713227440253,-313.977112,0.00033488,2]
[322704087,1713227440262,-3000.0,0.0003349,2]
[322704088,1713227440273,-333.279038,0.00033496,2]
[322704089,1713227440282,-333.279038,0.00033496,2]
[322704090,1713227440291,-151.0,0.00033496,2]
[322704091,1713227440300,-151.0,0.00033496,2]
[322704092,1713227440309,-151.265451,0.000335,2]
[322704093,1713227440318,-155.681918,0.000335,2]
[322704094,1713227440327,-1863.797743,0.000335,2]
[322704095,1713227440337,-1863.797743,0.000335,2]
[322704096,1713227440346,-3000.0,0.000335,2]
[322704097,1713227440355,-3000.0,0.0003351,2]
[322704098,1713227440364,-3000.0,0.0003352,2]
[322704099,1713227440373,-151.0,0.0003353,2]
[322704100,1713227440382,-151.0,0.0003353,2]
[322704101,1713227440391,-151.0,0.0003353,2]
[322704102,1713227440401,-151.0,0.0003353,2]
[322704103,1713227440412,-3000.0,0.0003353,2]
[322704104,1713227440425,-3000.0,0.0003354,2]
[322704105,1713227440435,-151.0,0.0003354,2]
[322704107,1713227440445,-151.0,0.0003354,2]
[322704110,1713227440455,-203.972086,0.0003354,2]
[322704113,1713227440464,-6331.789382,0.0003354,2]
[322704115,1713227440474,-6331.789382,0.0003354,2]
[322704117,1713227440483,-224.248124,0.0003354,2]
[322704119,1713227440493,-224.248124,0.0003354,2]
[322704121,1713227440503,-3000.0,0.0003355,2]
[322704123,1713227440515,-539.563969,0.0003355,2]
[322704125,1713227440525,-539.563969,0.0003355,2]
[322704127,1713227440536,-3000.0,0.0003356,2]
[322704129,1713227440545,-3000.0,0.0003357,2]
[322704131,1713227440555,-3000.0,0.0003358,2]
[322704133,1713227440566,-3000.0,0.0003359,2]
[322704135,1713227440577,-3000.0,0.000336,2]
[322704137,1713227440586,-3000.0,0.0003361,2]
[322704139,1713227440597,-168.12852,0.0003361,2]
[322704141,1713227440608,-168.12852,0.0003361,2]
[322704143,1713227440618,-333.279038,0.0003362,2]
[322704145,1713227440626,-333.279038,0.0003362,2]
[322704147,1713227440636,-151.0,0.0003362,2]
[322704149,1713227440645,-151.0,0.0003362,2]
[322704151,1713227440654,-3000.0,0.0003362,2]
[322704153,1713227440663,-3000.0,0.0003363,2]
[322704155,1713227440672,-3000.0,0.0003364,2]
[322704157,1713227440682,-3000.0,0.0003365,2]
[322704159,1713227440691,-5188.29812,0.0003366,2]
[322704161,1713227440700,-151.0,0.00033686,2]
[322704163,1713227440710,-151.0,0.00033686,2]
[322704165,1713227440720,-500.0,0.00033698,7]
[322704167,1713227440729,-151.0,0.00033698,2]
[322704169,1713227440738,-151.0,0.00033698,2]
[322704171,1713227440747,-151.0,0.00033698,2]
[322704173,1713227440757,-151.0,0.00033698,2]
[322704175,1713227440770,-1863.797743,0.00033698,2]
[322704177,1713227440780,-1863.797743,0.00033698,2]
[322704179,1713227440789,-620.52577473,0.00033786,2]
[322704181,1713227440797,-151.0,0.00033786,2]
[322704183,1713227440806,-151.0,0.00033786,2]
[322704185,1713227440815,-6331.789382,0.00033786,2]
[322704187,1713227440824,-6331.789382,0.00033786,2]
[322704189,1713227440833,-224.248124,0.00033786,2]
[322704191,1713227440842,-224.248124,0.00033786,2]
[322704193,1713227440851,-155.871676,0.00033899,2]
[322704195,1713227440860,-32617.0,0.000339,2]
[322704197,1713227440869,-333.279038,0.000339,2]
[322704199,1713227440878,-333.279038,0.000339,2]